Workbook

Sheet Juni2010 (2)
A1: Løn | B1: 1 juni 2010 - 30 juni 2010 | Q1: Time beregning:
A2: Lønart | G2: 3025 | H2: 3425 | I2: 3426 | J2: 3600 | K2: 3602 | L2: 3605 | M2: 3610 | N2: 9091 | O2: 9092 | Q2: Betalt pause ved vagt over 5 timer | U2: 00:25:00 | V2: minutter | W2: 00:00:00 | X2: 06:00:00 | Y2: 18:00:00 | Z2: 14:00:00
A3: Dato | B3: Dag | D3: Vagt | E3: Start | F3: Slut | G3: Time SID | H3: Overtid 1-3 time | I3: Overtid 4 - time | J3: Aftenstillæg | K3: Nattillæg 00-06 | L3: Søndags tillæg | M3: Delt tjenste
A4: 2010-04-01 | B4: =PROPER(TEXT(A4,"ddd")) -> To | C4: =HelligdagsNavn(A4,0,0) -> Skærtorsdag | D4: 111 | E4: =IF($D4="","",IF(VLOOKUP($D4,#REF!,2)=0,"",VLOOKUP($D4,#REF!,2))) ->  | F4: =IF($D4="","",IF(VLOOKUP($D4,#REF!,3)="","",VLOOKUP($D4,#REF!,3))) ->  | G4: =IF($D4="","",VLOOKUP($D4,#REF!,13)) ->  | J4: =IF(E4<>"",IF(WEEKDAY(A4,2)<>6,IF(E4>F4,(F4-MAX(E4,(18/24))+(E4>F4))-F4,IF(F4>Y$2,(F4-MAX(E4,(18/24))),"")),IF(E4>F4,(F4-MAX(E4,(14/24))+(E4>F4))-F4,IF(F4>Z$2,(F4-MAX(E4,(14/24))),""))),"") ->  | K4: =IF(G4<>"",IF(S4<X$2,(X$2-S4),IF(V4<X$2,(V4-W$2),"")),"") ->  | L4: =IF(G4<>0,IF(WEEKDAY(A4,2)=7,G4,""),"") ->  | M4: =IF($D4="","",IF(VLOOKUP($D4,#REF!,15)="","",VLOOKUP($D4,#REF!,15))) ->  | N4: =IF(SUM(H4:I4)=0,"",SUM(H4:I4)) ->  | Q4: =IF(E4="","",HOUR(E4)) ->  | R4: =IF(E4="","",MINUTE(E4)) ->  | S4: =IF(E4="","",TIME(HOUR(E4),MINUTE(E4),0)) ->  | T4: =IF(F4="","",HOUR(F4)) ->  | U4: =IF(F4="","",MINUTE(F4)) ->  | V4: =TIME(HOUR(F4),MINUTE(F4),0) -> 
A5: 2010-04-02 | B5: =PROPER(TEXT(A5,"ddd")) -> Fr | C5: =HelligdagsNavn(A5,0,0) -> Langfredag | D5: 134 | E5: =IF($D5="","",IF(VLOOKUP($D5,#REF!,2)=0,"",VLOOKUP($D5,#REF!,2))) ->  | F5: =IF($D5="","",IF(VLOOKUP($D5,#REF!,3)="","",VLOOKUP($D5,#REF!,3))) ->  | G5: =IF($D5="","",VLOOKUP($D5,#REF!,13)) ->  | J5: =IF(E5<>"",IF(WEEKDAY(A5,2)<>6,IF(E5>F5,(F5-MAX(E5,(18/24))+(E5>F5))-F5,IF(F5>Y$2,(F5-MAX(E5,(18/24))),"")),IF(E5>F5,(F5-MAX(E5,(14/24))+(E5>F5))-F5,IF(F5>Z$2,(F5-MAX(E5,(14/24))),""))),"") ->  | L5: =IF(G5<>0,IF(WEEKDAY(A5,2)=7,G5,""),"") ->  | M5: =IF($D5="","",IF(VLOOKUP($D5,#REF!,15)="","",VLOOKUP($D5,#REF!,15))) ->  | N5: =IF(SUM(H5:I5)=0,"",SUM(H5:I5)) ->  | V5: =TIME(HOUR(F5),MINUTE(F5),0) -> 
A6: 2010-04-03 | B6: =PROPER(TEXT(A6,"ddd")) -> Lø | D6: 612 | E6: =IF($D6="","",IF(VLOOKUP($D6,#REF!,2)=0,"",VLOOKUP($D6,#REF!,2))) ->  | F6: =IF($D6="","",IF(VLOOKUP($D6,#REF!,3)="","",VLOOKUP($D6,#REF!,3))) ->  | G6: =IF($D6="","",VLOOKUP($D6,#REF!,13)) ->  | J6: =IF(E6<>"",IF(WEEKDAY(A6,2)<>6,IF(E6>F6,(F6-MAX(E6,(18/24))+(E6>F6))-F6,IF(F6>Y$2,(F6-MAX(E6,(18/24))),"")),IF(E6>F6,(F6-MAX(E6,(14/24))+(E6>F6))-F6,IF(F6>Z$2,(F6-MAX(E6,(14/24))),""))),"") ->  | M6: =IF($D6="","",IF(VLOOKUP($D6,#REF!,15)="","",VLOOKUP($D6,#REF!,15))) ->  | V6: =TIME(HOUR(F6),MINUTE(F6),0) -> 
A7: 2010-04-04 | B7: Sø | C7: Påskedag | D7: 711 | E7: =IF($D7="","",IF(VLOOKUP($D7,#REF!,2)=0,"",VLOOKUP($D7,#REF!,2))) ->  | F7: =IF($D7="","",IF(VLOOKUP($D7,#REF!,3)="","",VLOOKUP($D7,#REF!,3))) ->  | G7: =IF($D7="","",VLOOKUP($D7,#REF!,13)) ->  | M7: =IF($D7="","",IF(VLOOKUP($D7,#REF!,15)="","",VLOOKUP($D7,#REF!,15))) ->  | O7: =IF($D7="","",IF(VLOOKUP($D7,#REF!,16)="","",VLOOKUP($D7,#REF!,16))) ->  | V7: =TIME(HOUR(F7),MINUTE(F7),0) -> 
A8: 2010-04-05 | B8: Ma | C8: 2. Påskedag | D8: 122 | E8: =IF($D8="","",IF(VLOOKUP($D8,#REF!,2)=0,"",VLOOKUP($D8,#REF!,2))) ->  | F8: =IF($D8="","",IF(VLOOKUP($D8,#REF!,3)="","",VLOOKUP($D8,#REF!,3))) ->  | G8: =IF($D8="","",VLOOKUP($D8,#REF!,13)) ->  | M8: =IF($D8="","",IF(VLOOKUP($D8,#REF!,15)="","",VLOOKUP($D8,#REF!,15))) ->  | O8: =IF($D8="","",IF(VLOOKUP($D8,#REF!,16)="","",VLOOKUP($D8,#REF!,16))) ->  | V8: =TIME(HOUR(F8),MINUTE(F8),0) -> 
A9: 2010-04-06 | B9: Ti | D9: 124 | E9: =IF($D9="","",IF(VLOOKUP($D9,#REF!,2)=0,"",VLOOKUP($D9,#REF!,2))) ->  | F9: =IF($D9="","",IF(VLOOKUP($D9,#REF!,3)="","",VLOOKUP($D9,#REF!,3))) ->  | G9: =IF($D9="","",VLOOKUP($D9,#REF!,13)) ->  | L9: =IF(G9<>0,IF(WEEKDAY(A9,2)=7,G9,""),"") ->  | M9: =IF($D9="","",IF(VLOOKUP($D9,#REF!,15)="","",VLOOKUP($D9,#REF!,15))) ->  | O9: =IF($D9="","",IF(VLOOKUP($D9,#REF!,16)="","",VLOOKUP($D9,#REF!,16))) ->  | V9: =IF(F9="","",TIME(HOUR(F9),MINUTE(F9),0)) -> 
A10: 2010-04-07 | B10: On | D10: 606 | E10: =IF($D10="","",IF(VLOOKUP($D10,#REF!,2)=0,"",VLOOKUP($D10,#REF!,2))) ->  | F10: =IF($D10="","",IF(VLOOKUP($D10,#REF!,3)="","",VLOOKUP($D10,#REF!,3))) ->  | G10: =IF($D10="","",IF(VLOOKUP($D10,#REF!,13)="","",VLOOKUP($D10,#REF!,13))) ->  | L10: =IF(G10<>0,IF(WEEKDAY(A10,2)=7,G10,""),"") ->  | M10: =IF($D10="","",IF(VLOOKUP($D10,#REF!,15)="","",VLOOKUP($D10,#REF!,15))) ->  | O10: =IF($D10="","",IF(VLOOKUP($D10,#REF!,16)="","",VLOOKUP($D10,#REF!,16))) -> 
A11: 2010-04-08 | B11: To | D11: 122 | E11: =IF($D11="","",IF(VLOOKUP($D11,#REF!,2)=0,"",VLOOKUP($D11,#REF!,2))) ->  | F11: =IF($D11="","",IF(VLOOKUP($D11,#REF!,3)="","",VLOOKUP($D11,#REF!,3))) ->  | G11: =IF($D11="","",IF(VLOOKUP($D11,#REF!,13)="","",VLOOKUP($D11,#REF!,13))) ->  | L11: =IF(G11<>0,IF(WEEKDAY(A11,2)=7,G11,""),"") ->  | M11: =IF($D11="","",IF(VLOOKUP($D11,#REF!,15)="","",VLOOKUP($D11,#REF!,15))) ->  | O11: =IF($D11="","",IF(VLOOKUP($D11,#REF!,16)="","",VLOOKUP($D11,#REF!,16))) -> 
A12: 2010-04-09 | B12: Fr | D12: afsp. | E12: =IF($D12="","",IF(VLOOKUP($D12,#REF!,2)=0,"",VLOOKUP($D12,#REF!,2))) ->  | F12: =IF($D12="","",IF(VLOOKUP($D12,#REF!,3)="","",VLOOKUP($D12,#REF!,3))) ->  | G12: =IF($D12="","",IF(VLOOKUP($D12,#REF!,13)="","",VLOOKUP($D12,#REF!,13))) ->  | M12: =IF($D12="","",IF(VLOOKUP($D12,#REF!,15)="","",VLOOKUP($D12,#REF!,15))) ->  | O12: =IF($D12="","",IF(VLOOKUP($D12,#REF!,16)="","",VLOOKUP($D12,#REF!,16))) -> 
A13: 2010-04-10 | B13: Lø | D13: 121 | E13: =IF($D13="","",IF(VLOOKUP($D13,#REF!,2)=0,"",VLOOKUP($D13,#REF!,2))) ->  | F13: =IF($D13="","",IF(VLOOKUP($D13,#REF!,3)="","",VLOOKUP($D13,#REF!,3))) ->  | G13: =IF($D13="","",IF(VLOOKUP($D13,#REF!,13)="","",VLOOKUP($D13,#REF!,13))) ->  | M13: =IF($D13="","",IF(VLOOKUP($D13,#REF!,15)="","",VLOOKUP($D13,#REF!,15))) ->  | O13: =IF($D13="","",IF(VLOOKUP($D13,#REF!,16)="","",VLOOKUP($D13,#REF!,16))) -> 
A14: 2010-04-11 | B14: Sø | D14: 606 | E14: =IF($D14="","",IF(VLOOKUP($D14,#REF!,2)=0,"",VLOOKUP($D14,#REF!,2))) ->  | F14: =IF($D14="","",IF(VLOOKUP($D14,#REF!,3)="","",VLOOKUP($D14,#REF!,3))) ->  | G14: =IF($D14="","",IF(VLOOKUP($D14,#REF!,13)="","",VLOOKUP($D14,#REF!,13))) ->  | M14: =IF($D14="","",IF(VLOOKUP($D14,#REF!,15)="","",VLOOKUP($D14,#REF!,15))) ->  | O14: =IF($D14="","",IF(VLOOKUP($D14,#REF!,16)="","",VLOOKUP($D14,#REF!,16))) -> 
A15: 2010-04-12 | B15: Ma | D15: 606 | E15: =IF($D15="","",IF(VLOOKUP($D15,#REF!,2)=0,"",VLOOKUP($D15,#REF!,2))) ->  | F15: =IF($D15="","",IF(VLOOKUP($D15,#REF!,3)="","",VLOOKUP($D15,#REF!,3))) ->  | G15: =IF($D15="","",IF(VLOOKUP($D15,#REF!,13)="","",VLOOKUP($D15,#REF!,13))) ->  | M15: =IF($D15="","",IF(VLOOKUP($D15,#REF!,15)="","",VLOOKUP($D15,#REF!,15))) ->  | O15: =IF($D15="","",IF(VLOOKUP($D15,#REF!,16)="","",VLOOKUP($D15,#REF!,16))) -> 
A16: 2010-04-13 | B16: Ti | D16: 127 | E16: =IF($D16="","",IF(VLOOKUP($D16,#REF!,2)=0,"",VLOOKUP($D16,#REF!,2))) ->  | F16: =IF($D16="","",IF(VLOOKUP($D16,#REF!,3)="","",VLOOKUP($D16,#REF!,3))) ->  | G16: =IF($D16="","",IF(VLOOKUP($D16,#REF!,13)="","",VLOOKUP($D16,#REF!,13))) ->  | M16: =IF($D16="","",IF(VLOOKUP($D16,#REF!,15)="","",VLOOKUP($D16,#REF!,15))) ->  | O16: =IF($D16="","",IF(VLOOKUP($D16,#REF!,16)="","",VLOOKUP($D16,#REF!,16))) -> 
A17: 2010-04-14 | B17: On | D17: x | E17: =IF($D17="","",IF(VLOOKUP($D17,#REF!,2)=0,"",VLOOKUP($D17,#REF!,2))) ->  | F17: =IF($D17="","",IF(VLOOKUP($D17,#REF!,3)="","",VLOOKUP($D17,#REF!,3))) ->  | G17: =IF($D17="","",IF(VLOOKUP($D17,#REF!,13)="","",VLOOKUP($D17,#REF!,13))) ->  | M17: =IF($D17="","",IF(VLOOKUP($D17,#REF!,15)="","",VLOOKUP($D17,#REF!,15))) ->  | O17: =IF($D17="","",IF(VLOOKUP($D17,#REF!,16)="","",VLOOKUP($D17,#REF!,16))) -> 
A18: 2010-04-15 | B18: To | D18: x | E18: =IF($D18="","",IF(VLOOKUP($D18,#REF!,2)=0,"",VLOOKUP($D18,#REF!,2))) ->  | F18: =IF($D18="","",IF(VLOOKUP($D18,#REF!,3)="","",VLOOKUP($D18,#REF!,3))) ->  | G18: =IF($D18="","",IF(VLOOKUP($D18,#REF!,13)="","",VLOOKUP($D18,#REF!,13))) ->  | M18: =IF($D18="","",IF(VLOOKUP($D18,#REF!,15)="","",VLOOKUP($D18,#REF!,15))) ->  | O18: =IF($D18="","",IF(VLOOKUP($D18,#REF!,16)="","",VLOOKUP($D18,#REF!,16))) -> 
A19: 2010-04-16 | B19: Fr | D19: 142 | E19: =IF($D19="","",IF(VLOOKUP($D19,#REF!,2)=0,"",VLOOKUP($D19,#REF!,2))) ->  | F19: =IF($D19="","",IF(VLOOKUP($D19,#REF!,3)="","",VLOOKUP($D19,#REF!,3))) ->  | G19: =IF($D19="","",IF(VLOOKUP($D19,#REF!,13)="","",VLOOKUP($D19,#REF!,13))) ->  | M19: =IF($D19="","",IF(VLOOKUP($D19,#REF!,15)="","",VLOOKUP($D19,#REF!,15))) ->  | O19: =IF($D19="","",IF(VLOOKUP($D19,#REF!,16)="","",VLOOKUP($D19,#REF!,16))) -> 
A20: 2010-04-17 | B20: Lø | D20: 143f | E20: =IF($D20="","",IF(VLOOKUP($D20,#REF!,2)=0,"",VLOOKUP($D20,#REF!,2))) ->  | F20: =IF($D20="","",IF(VLOOKUP($D20,#REF!,3)="","",VLOOKUP($D20,#REF!,3))) ->  | G20: =IF($D20="","",IF(VLOOKUP($D20,#REF!,13)="","",VLOOKUP($D20,#REF!,13))) ->  | M20: =IF($D20="","",IF(VLOOKUP($D20,#REF!,15)="","",VLOOKUP($D20,#REF!,15))) ->  | O20: =IF($D20="","",IF(VLOOKUP($D20,#REF!,16)="","",VLOOKUP($D20,#REF!,16))) -> 
A21: 2010-04-18 | B21: Sø | D21: 147 | E21: =IF($D21="","",IF(VLOOKUP($D21,#REF!,2)=0,"",VLOOKUP($D21,#REF!,2))) ->  | F21: =IF($D21="","",IF(VLOOKUP($D21,#REF!,3)="","",VLOOKUP($D21,#REF!,3))) ->  | G21: =IF($D21="","",IF(VLOOKUP($D21,#REF!,13)="","",VLOOKUP($D21,#REF!,13))) ->  | M21: =IF($D21="","",IF(VLOOKUP($D21,#REF!,15)="","",VLOOKUP($D21,#REF!,15))) ->  | O21: =IF($D21="","",IF(VLOOKUP($D21,#REF!,16)="","",VLOOKUP($D21,#REF!,16))) -> 
A22: 2010-04-19 | B22: Ma | D22: 146 | E22: =IF($D22="","",IF(VLOOKUP($D22,#REF!,2)=0,"",VLOOKUP($D22,#REF!,2))) ->  | F22: =IF($D22="","",IF(VLOOKUP($D22,#REF!,3)="","",VLOOKUP($D22,#REF!,3))) ->  | G22: =IF($D22="","",IF(VLOOKUP($D22,#REF!,13)="","",VLOOKUP($D22,#REF!,13))) ->  | M22: =IF($D22="","",IF(VLOOKUP($D22,#REF!,15)="","",VLOOKUP($D22,#REF!,15))) ->  | O22: =IF($D22="","",IF(VLOOKUP($D22,#REF!,16)="","",VLOOKUP($D22,#REF!,16))) -> 
A23: 2010-04-20 | B23: Ti | D23: 145 | E23: =IF($D23="","",IF(VLOOKUP($D23,#REF!,2)=0,"",VLOOKUP($D23,#REF!,2))) ->  | F23: =IF($D23="","",IF(VLOOKUP($D23,#REF!,3)="","",VLOOKUP($D23,#REF!,3))) ->  | G23: =IF($D23="","",IF(VLOOKUP($D23,#REF!,13)="","",VLOOKUP($D23,#REF!,13))) ->  | M23: =IF($D23="","",IF(VLOOKUP($D23,#REF!,15)="","",VLOOKUP($D23,#REF!,15))) ->  | O23: =IF($D23="","",IF(VLOOKUP($D23,#REF!,16)="","",VLOOKUP($D23,#REF!,16))) -> 
A24: 2010-04-21 | B24: On | D24: afsp. | E24: =IF($D24="","",IF(VLOOKUP($D24,#REF!,2)=0,"",VLOOKUP($D24,#REF!,2))) ->  | F24: =IF($D24="","",IF(VLOOKUP($D24,#REF!,3)="","",VLOOKUP($D24,#REF!,3))) ->  | G24: =IF($D24="","",IF(VLOOKUP($D24,#REF!,13)="","",VLOOKUP($D24,#REF!,13))) ->  | M24: =IF($D24="","",IF(VLOOKUP($D24,#REF!,15)="","",VLOOKUP($D24,#REF!,15))) ->  | O24: =IF($D24="","",IF(VLOOKUP($D24,#REF!,16)="","",VLOOKUP($D24,#REF!,16))) -> 
A25: 2010-04-22 | B25: To | D25: 715 | E25: =IF($D25="","",IF(VLOOKUP($D25,#REF!,2)=0,"",VLOOKUP($D25,#REF!,2))) ->  | F25: =IF($D25="","",IF(VLOOKUP($D25,#REF!,3)="","",VLOOKUP($D25,#REF!,3))) ->  | G25: =IF($D25="","",IF(VLOOKUP($D25,#REF!,13)="","",VLOOKUP($D25,#REF!,13))) ->  | M25: =IF($D25="","",IF(VLOOKUP($D25,#REF!,15)="","",VLOOKUP($D25,#REF!,15))) ->  | O25: =IF($D25="","",IF(VLOOKUP($D25,#REF!,16)="","",VLOOKUP($D25,#REF!,16))) -> 
A26: 2010-04-23 | B26: Fr | E26: =IF($D26="","",IF(VLOOKUP($D26,#REF!,2)=0,"",VLOOKUP($D26,#REF!,2))) ->  | F26: =IF($D26="","",IF(VLOOKUP($D26,#REF!,3)="","",VLOOKUP($D26,#REF!,3))) ->  | G26: =IF($D26="","",IF(VLOOKUP($D26,#REF!,13)="","",VLOOKUP($D26,#REF!,13))) ->  | M26: =IF($D26="","",IF(VLOOKUP($D26,#REF!,15)="","",VLOOKUP($D26,#REF!,15))) ->  | O26: =IF($D26="","",IF(VLOOKUP($D26,#REF!,16)="","",VLOOKUP($D26,#REF!,16))) -> 
A27: 2010-04-24 | B27: Lø | D27: 612 | E27: =IF($D27="","",IF(VLOOKUP($D27,#REF!,2)=0,"",VLOOKUP($D27,#REF!,2))) ->  | F27: =IF($D27="","",IF(VLOOKUP($D27,#REF!,3)="","",VLOOKUP($D27,#REF!,3))) ->  | G27: =IF($D27="","",IF(VLOOKUP($D27,#REF!,13)="","",VLOOKUP($D27,#REF!,13))) ->  | M27: =IF($D27="","",IF(VLOOKUP($D27,#REF!,15)="","",VLOOKUP($D27,#REF!,15))) ->  | O27: =IF($D27="","",IF(VLOOKUP($D27,#REF!,16)="","",VLOOKUP($D27,#REF!,16))) -> 
A28: 2010-04-25 | B28: Sø | E28: =IF($D28="","",IF(VLOOKUP($D28,#REF!,2)=0,"",VLOOKUP($D28,#REF!,2))) ->  | F28: =IF($D28="","",IF(VLOOKUP($D28,#REF!,3)="","",VLOOKUP($D28,#REF!,3))) ->  | G28: =IF($D28="","",IF(VLOOKUP($D28,#REF!,13)="","",VLOOKUP($D28,#REF!,13))) ->  | M28: =IF($D28="","",IF(VLOOKUP($D28,#REF!,15)="","",VLOOKUP($D28,#REF!,15))) ->  | O28: =IF($D28="","",IF(VLOOKUP($D28,#REF!,16)="","",VLOOKUP($D28,#REF!,16))) -> 
A29: 2010-04-26 | B29: Ma | E29: =IF($D29="","",IF(VLOOKUP($D29,#REF!,2)=0,"",VLOOKUP($D29,#REF!,2))) ->  | F29: =IF($D29="","",IF(VLOOKUP($D29,#REF!,3)="","",VLOOKUP($D29,#REF!,3))) ->  | G29: =IF($D29="","",IF(VLOOKUP($D29,#REF!,13)="","",VLOOKUP($D29,#REF!,13))) ->  | M29: =IF($D29="","",IF(VLOOKUP($D29,#REF!,15)="","",VLOOKUP($D29,#REF!,15))) ->  | O29: =IF($D29="","",IF(VLOOKUP($D29,#REF!,16)="","",VLOOKUP($D29,#REF!,16))) -> 
A30: 2010-04-27 | B30: Ti | E30: =IF($D30="","",IF(VLOOKUP($D30,#REF!,2)=0,"",VLOOKUP($D30,#REF!,2))) ->  | F30: =IF($D30="","",IF(VLOOKUP($D30,#REF!,3)="","",VLOOKUP($D30,#REF!,3))) ->  | G30: =IF($D30="","",IF(VLOOKUP($D30,#REF!,13)="","",VLOOKUP($D30,#REF!,13))) ->  | M30: =IF($D30="","",IF(VLOOKUP($D30,#REF!,15)="","",VLOOKUP($D30,#REF!,15))) ->  | O30: =IF($D30="","",IF(VLOOKUP($D30,#REF!,16)="","",VLOOKUP($D30,#REF!,16))) -> 
A31: 2010-04-28 | B31: On | D31: afsp. | E31: =IF($D31="","",IF(VLOOKUP($D31,#REF!,2)=0,"",VLOOKUP($D31,#REF!,2))) ->  | F31: =IF($D31="","",IF(VLOOKUP($D31,#REF!,3)="","",VLOOKUP($D31,#REF!,3))) ->  | G31: =IF($D31="","",IF(VLOOKUP($D31,#REF!,13)="","",VLOOKUP($D31,#REF!,13))) ->  | M31: =IF($D31="","",IF(VLOOKUP($D31,#REF!,15)="","",VLOOKUP($D31,#REF!,15))) ->  | O31: =IF($D31="","",IF(VLOOKUP($D31,#REF!,16)="","",VLOOKUP($D31,#REF!,16))) -> 
A32: 2010-04-29 | B32: =IF(A32="","",PROPER(TEXT(A32,"ddd"))) -> To | D32: afsp. | E32: =IF($D32="","",IF(VLOOKUP($D32,#REF!,2)=0,"",VLOOKUP($D32,#REF!,2))) ->  | F32: =IF($D32="","",IF(VLOOKUP($D32,#REF!,3)="","",VLOOKUP($D32,#REF!,3))) ->  | G32: =IF($D32="","",IF(VLOOKUP($D32,#REF!,13)="","",VLOOKUP($D32,#REF!,13))) ->  | M32: =IF($D32="","",IF(VLOOKUP($D32,#REF!,15)="","",VLOOKUP($D32,#REF!,15))) ->  | O32: =IF($D32="","",IF(VLOOKUP($D32,#REF!,16)="","",VLOOKUP($D32,#REF!,16))) -> 
A33: 2010-04-30 | B33: =IF(A33="","",PROPER(TEXT(A33,"ddd"))) -> Fr | C33: Store Bededag | D33: x | E33: =IF($D33="","",IF(VLOOKUP($D33,#REF!,2)=0,"",VLOOKUP($D33,#REF!,2))) ->  | F33: =IF($D33="","",IF(VLOOKUP($D33,#REF!,3)="","",VLOOKUP($D33,#REF!,3))) ->  | G33: =IF($D33="","",IF(VLOOKUP($D33,#REF!,13)="","",VLOOKUP($D33,#REF!,13))) ->  | M33: =IF($D33="","",IF(VLOOKUP($D33,#REF!,15)="","",VLOOKUP($D33,#REF!,15))) ->  | O33: =IF($D33="","",IF(VLOOKUP($D33,#REF!,16)="","",VLOOKUP($D33,#REF!,16))) -> 
C34: 1. Juledag | E34: =IF($D34="","",IF(VLOOKUP($D34,#REF!,2)=0,"",VLOOKUP($D34,#REF!,2))) ->  | F34: =IF($D34="","",IF(VLOOKUP($D34,#REF!,3)="","",VLOOKUP($D34,#REF!,3))) ->  | G34: =IF($D34="","",IF(VLOOKUP($D34,#REF!,13)="","",VLOOKUP($D34,#REF!,13))) ->  | M34: =IF($D34="","",IF(VLOOKUP($D34,#REF!,15)="","",VLOOKUP($D34,#REF!,15))) ->  | O34: =IF($D34="","",IF(VLOOKUP($D34,#REF!,16)="","",VLOOKUP($D34,#REF!,16))) -> 
A35: Total timer | G35: =IF(SUM(G9:G34)<>"0",SUM(G4:G34),"") ->  | H35: =IF(SUM(H4:H34)<>"0",SUM(H4:H34),"") -> 0 | I35: 0 | N35: =SUM(N4:N34) -> 0 | O35: =SUM(O4:O34) -> 
A36: Timer 1/100 | G36: =IF(G35<>"",ROUND(G35*24,2),"") ->  | H36: =IF(H35<>"",ROUND(H35*24,2),"") -> 0 | I36: 0 | N36: 0
A37: Satser | G37: =Satser!B7 -> 107.35 | H37: =Satser!B9 -> 36.35 | I37: =Satser!B12 -> 58.1 | J37: 18.8 | K37: 21.81 | L37: 28.68 | M37: 67
G38: =IF(G35<>"",G36*G37,"") ->  | H38: =IF(H35<>"",H36*H37,"") -> 0 | I38: 0 | M38: =IF(M35<>"",M35*M37,"") -> 
A40: Lønart
A41: 3025 | G41: =G35 -> 
A42: 3425 | G42: =H35 -> 0
A43: 3426 | G43: =I35 -> 0
A44: Timer | G44: =SUM(G41:G43) ->  | H44: =IF(G44<>"",ROUND(G44*24,2),"") -> 
H45: =G37*H44 -> 

Sheet september2010
A1: Løn | B1: =PROPER(TEXT(A4,"dd mmmm åååå")) & PROPER(TEXT(A34," - dd mmmm åååå")) -> 05 December 2011 - 01 Januar 2012 | J1: Uge : | K1: =IF(A4="","",TRUNC((A4-WEEKDAY(A4,2)-DATE(YEAR(A4+4-WEEKDAY(A4,2)),1,-10))/7)) -> 49 | L1: - | N1: =IF(A28="","",TRUNC((A28-WEEKDAY(A28,2)-DATE(YEAR(A28+4-WEEKDAY(A28,2)),1,-10))/7)) -> 52 | Y1: Time beregning: | AJ1: 06:00:00 | AK1: 18:00:00
A2: Lønart | Y2: Betalt pause ved vagt over 5 timer | AC2: 00:25:00 | AD2: minutter | AE2: 00:00:00 | AF2: 06:00:00 | AG2: 17:00:00 | AH2: 14:00:00
A3: Dato | B3: Dag | D3: Start | E3: Slut | F3: Pause | G3: Arb. Tid | H3: Overtid 1-2 time | I3: Overtid 3-4 time | J3: Overtid 5 - time | K3: Forskudt tid alle dage 18-22 | M3: Natarbejde 22-06 | O3: Lørdag tillæg 06 - 18 | P3: Lørdag tillæg 18 - 06 | Q3: Søndag tillæg 06 - 12 | R3: Søndag tillæg 12 - 06 | S3: Optjent afspadsering | T3: Afholdt afspadsering | U3: Syge Timer | V3: norm
A4: 2011-12-05 | B4: =PROPER(TEXT(A4,"ddd")) -> Ma | C4: =HelligdagsNavn(A4,0,0) ->  | D4: 07:00:00 | E4: 14:45:00 | F4: 00:15:00 | G4: =IF(D4="","",(E4-D4)+(D4>E4)-F4+H4+I4+J4) -> 0.4270833333 | H4: 02:00:00 | I4: 00:45:00 | K4: =ColTime(TIME(18,0,0),TIME(22,0,0),D4,E4) -> 00:00:00 | M4: =ColTime(TIME(22,0,0),TIME(6,0,0),D4,E4) -> 00:00:00 | Q4: =IF(D4="","",IF(D4<6/24,6/24-D4,"")) ->  | S4: =H4+I4+J4 -> 02:45:00 | V4: =CHOOSE(WEEKDAY(A4,2),norm!C$1,norm!C$2,norm!C$3,norm!C$4,norm!C$5,norm!C$6,norm!C$7) -> 07:30:00 | Y4: =IF(D4="","",HOUR(D4)) -> 7 | Z4: =IF(D4="","",MINUTE(D4)) -> 0 | AA4: =IF(D4="","",TIME(HOUR(D4),MINUTE(D4),0)) -> 07:00:00 | AB4: =IF(E4="","",HOUR(E4)) -> 14 | AC4: =IF(E4="","",MINUTE(E4)) -> 45 | AD4: 02:00:00 | AE4: 09:30:00 | AF4: 11:30:00
A5: =A4+1 -> 2011-12-06 | B5: =PROPER(TEXT(A5,"ddd")) -> Ti | C5: =HelligdagsNavn(A5,0,0) ->  | D5: 13:45:00 | E5: 21:30:00 | F5: 00:15:00 | G5: 0.3125 | K5: =ColTime(TIME(18,0,0),TIME(22,0,0),D5,E5) -> 03:30:00 | M5: =ColTime(TIME(22,0,0),TIME(6,0,0),D5,E5) -> 00:00:00 | S5: 00:00:00 | V5: =CHOOSE(WEEKDAY(A5,2),norm!C$1,norm!C$2,norm!C$3,norm!C$4,norm!C$5,norm!C$6,norm!C$7) -> 07:30:00 | Y5: 13 | Z5: 45 | AA5: 13:45:00 | AB5: 21 | AC5: 30 | AD5: =IF(E5="","",TIME(HOUR(E5),MINUTE(E5),0)) -> 21:30:00
A6: =A5+1 -> 2011-12-07 | B6: =PROPER(TEXT(A6,"ddd")) -> On | D6: 22:00:00 | E6: 05:45:00 | F6: 00:15:00 | G6: 0.3125 | K6: 00:00:00 | M6: 07:45:00 | O6: =ColTime(TIME(6,0,0),TIME(18,0,0),D6,E6) -> 00:00:00 | S6: 00:00:00 | V6: =CHOOSE(WEEKDAY(A6,2),norm!C$1,norm!C$2,norm!C$3,norm!C$4,norm!C$5,norm!C$6,norm!C$7) -> 07:30:00 | Y6: 22 | Z6: 0 | AA6: 22:00:00 | AB6: 5 | AC6: 45 | AD6: =IF(E6="","",TIME(HOUR(E6),MINUTE(E6),0)) -> 05:45:00
A7: 2011-12-08 | B7: To | D7: 05:00:00 | E7: 12:45:00 | F7: 00:15:00 | G7: 0.4895833333 | H7: 02:00:00 | I7: 02:00:00 | J7: 00:15:00 | K7: 00:00:00 | M7: =ColTime(TIME(22,0,0),TIME(6,0,0),D7,E7) -> 01:00:00 | S7: 04:15:00 | V7: =CHOOSE(WEEKDAY(A7,2),norm!C$1,norm!C$2,norm!C$3,norm!C$4,norm!C$5,norm!C$6,norm!C$7) -> 07:30:00 | Y7: 5 | Z7: 0 | AA7: 05:00:00 | AB7: 12 | AC7: 45 | AD7: 12:45:00
A8: 2011-12-09 | B8: Fr | K8: 00:00:00 | M8: 00:00:00 | S8: 00:00:00 | V8: =CHOOSE(WEEKDAY(A8,2),norm!C$1,norm!C$2,norm!C$3,norm!C$4,norm!C$5,norm!C$6,norm!C$7) -> 07:00:00
A9: 2011-12-10 | B9: Lø | D9: 06:00:00 | E9: 19:00:00 | G9: 0.5416666667 | K9: 01:00:00 | M9: 00:00:00 | O9: 12:00:00 | P9: =ColTime(TIME(18,0,0),TIME(6,0,0),D9,E9) -> 01:00:00 | S9: 00:00:00 | V9: =CHOOSE(WEEKDAY(A9,2),norm!C$1,norm!C$2,norm!C$3,norm!C$4,norm!C$5,norm!C$6,norm!C$7) -> 00:00:00 | Y9: 6 | Z9: 0 | AA9: 06:00:00 | AB9: 19 | AC9: 0 | AD9: 19:00:00
A10: 2011-12-11 | B10: Sø | D10: 07:00:00 | E10: 19:00:00 | G10: 0.5 | K10: 01:00:00 | M10: 00:00:00 | P10: =IF(D10<AJ1,ColTime(TIME(18,0,0),TIME(6,0,0),D10,AK1),0) -> 00:00:00 | Q10: =ColTime(TIME(6,0,0),TIME(12,0,0),D10,E10) -> 05:00:00 | R10: =IF(D10<AJ1,ColTime(TIME(12,0,0),TIME(6,0,0),AJ1,E10),ColTime(TIME(12,0,0),TIME(6,0,0),D10,E10)) -> 07:00:00 | S10: 00:00:00 | V10: =CHOOSE(WEEKDAY(A10,2),norm!C$1,norm!C$2,norm!C$3,norm!C$4,norm!C$5,norm!C$6,norm!C$7) -> 00:00:00 | Y10: 7 | Z10: 0 | AA10: 07:00:00 | AB10: 19 | AC10: 0 | AD10: 19:00:00
G11: =IF(D11="","",(E11-D11)+(D11>E11)-F11+H11+I11) ->  | M11: =IF(G11="","",IF((E11-MAX(D11,(22/24))+(D11>E11))<0,0,(IF(E11<D11,IF(E11>6/24,6/24,E11),E11)-MAX(D11,(22/24)))+(D11>E11))+(6/24)-MIN(D11,(6/24))) ->  | S11: =IF(G11="","",IF(G11<>0,IF(C11<>"",IF(O11+Q11=0,Satser!B$26,((O11+Q11)*24)*(24/1440)+Satser!B$26),IF(O11+Q11=0,"",((O11+Q11)*24)*(24/1440))),"")) -> 
A12: =A10+1 -> 2011-12-12 | B12: =PROPER(TEXT(A12,"ddd")) -> Ma | C12: =HelligdagsNavn(A12,0,0) ->  | K12: =IF(D12="","",(IF(E12-MAX(D12,(17/24))+(E12<D12)<0,0,E12-MAX(D12,(17/24))+(E12<D12)))-(IF((E12-MAX(D12,(23/24))+(E12<D12))<0,0,(E12-MAX(D12,(23/24))+(E12<D12))))) ->  | Q12: =IF(D12="","",IF(D12<6/24,6/24-D12,"")) ->  | S12: =IF(G12="","",IF(G12<>0,IF(C12<>"",IF(O12+Q12=0,Satser!B$26,((O12+Q12)*24)*(24/1440)+Satser!B$26),IF(O12+Q12=0,"",((O12+Q12)*24)*(24/1440))),"")) ->  | V12: =CHOOSE(WEEKDAY(A12,2),norm!C$1,norm!C$2,norm!C$3,norm!C$4,norm!C$5,norm!C$6,norm!C$7) -> 07:30:00
A13: =A12+1 -> 2011-12-13 | B13: =PROPER(TEXT(A13,"ddd")) -> Ti | C13: =HelligdagsNavn(A13,0,0) ->  | K13: =IF(D13="","",(IF(E13-MAX(D13,(17/24))+(E13<D13)<0,0,E13-MAX(D13,(17/24))+(E13<D13)))-(IF((E13-MAX(D13,(23/24))+(E13<D13))<0,0,(E13-MAX(D13,(23/24))+(E13<D13))))) ->  | S13: =IF(G13="","",IF(G13<>0,IF(C13<>"",IF(O13+Q13=0,Satser!B$26,((O13+Q13)*24)*(24/1440)+Satser!B$26),IF(O13+Q13=0,"",((O13+Q13)*24)*(24/1440))),"")) ->  | V13: =CHOOSE(WEEKDAY(A13,2),norm!C$1,norm!C$2,norm!C$3,norm!C$4,norm!C$5,norm!C$6,norm!C$7) -> 07:30:00
A14: =A13+1 -> 2011-12-14 | B14: =PROPER(TEXT(A14,"ddd")) -> On | G14: =IF(D14="","",(E14-D14)+(D14>E14)-F14+H14+I14) ->  | S14: =IF(G14="","",IF(G14<>0,IF(C14<>"",IF(O14+Q14=0,Satser!B$26,((O14+Q14)*24)*(24/1440)+Satser!B$26),IF(O14+Q14=0,"",((O14+Q14)*24)*(24/1440))),"")) ->  | V14: =CHOOSE(WEEKDAY(A14,2),norm!C$1,norm!C$2,norm!C$3,norm!C$4,norm!C$5,norm!C$6,norm!C$7) -> 07:30:00
A15: 2011-12-15 | B15: To | S15: =IF(G15="","",IF(G15<>0,IF(C15<>"",IF(O15+Q15=0,Satser!B$26,((O15+Q15)*24)*(24/1440)+Satser!B$26),IF(O15+Q15=0,"",((O15+Q15)*24)*(24/1440))),"")) ->  | V15: =CHOOSE(WEEKDAY(A15,2),norm!C$1,norm!C$2,norm!C$3,norm!C$4,norm!C$5,norm!C$6,norm!C$7) -> 07:30:00
A16: 2011-12-16 | B16: Fr | K16: =IF(D16="","",(IF(E16-MAX(D16,(17/24))+(E16<D16)<0,0,E16-MAX(D16,(17/24))+(E16<D16)))-(IF((E16-MAX(D16,(23/24))+(E16<D16))<0,0,(E16-MAX(D16,(23/24))+(E16<D16))))) ->  | O16: =IF(D16="","",IF(E16<D16,IF(E16>6/24,E16-6/24,""),"")) ->  | S16: =IF(G16="","",IF(G16<>0,IF(C16<>"",IF(O16+Q16=0,Satser!B$26,((O16+Q16)*24)*(24/1440)+Satser!B$26),IF(O16+Q16=0,"",((O16+Q16)*24)*(24/1440))),"")) ->  | V16: =CHOOSE(WEEKDAY(A16,2),norm!C$1,norm!C$2,norm!C$3,norm!C$4,norm!C$5,norm!C$6,norm!C$7) -> 07:00:00
A17: 2011-12-17 | B17: Lø | O17: =IF(D17="","",IF((E17-MAX(D17,(6/24))+(D17>E17))<0,0,(IF(E17<D17,IF(E17>6/24,6/24,E17),E17)-MAX(D17,(6/24)))+(D17>E17))+(6/24)-MIN(E17,(6/24))) ->  | Q17: =IF(E17<D17,IF(E17>6/24,E17-6/24,""),"") ->  | S17: =IF(G17="","",IF(G17<>0,IF(C17<>"",IF(O17+Q17=0,Satser!B$26,((O17+Q17)*24)*(24/1440)+Satser!B$26),IF(O17+Q17=0,"",((O17+Q17)*24)*(24/1440))),"")) ->  | V17: =CHOOSE(WEEKDAY(A17,2),norm!C$1,norm!C$2,norm!C$3,norm!C$4,norm!C$5,norm!C$6,norm!C$7) -> 00:00:00
A18: 2011-12-18 | B18: Sø | O18: =IF(D18="","",IF(D18<6/24,IF(E18<6/24,6/24-D18-(6/24-E18),6/24-D18),"00:00")) ->  | Q18: =IF(D18="","",IF((E18-MAX(D18,(6/24))+(D18>E18))<0,0,(IF(E18<D18,IF(E18>6/24,6/24,E18),E18)-MAX(D18,(6/24)))+(D18>E18))+(6/24)-MIN(E18,(6/24))) ->  | S18: =IF(G18="","",IF(G18<>0,IF(C18<>"",IF(O18+Q18=0,Satser!B$26,((O18+Q18)*24)*(24/1440)+Satser!B$26),IF(O18+Q18=0,"",((O18+Q18)*24)*(24/1440))),"")) ->  | V18: =CHOOSE(WEEKDAY(A18,2),norm!C$1,norm!C$2,norm!C$3,norm!C$4,norm!C$5,norm!C$6,norm!C$7) -> 00:00:00
S19: =IF(G19="","",IF(G19<>0,IF(C19<>"",IF(O19+Q19=0,Satser!B$26,((O19+Q19)*24)*(24/1440)+Satser!B$26),IF(O19+Q19=0,"",((O19+Q19)*24)*(24/1440))),"")) ->  | V19: =CHOOSE(WEEKDAY(A19,2),norm!C$1,norm!C$2,norm!C$3,norm!C$4,norm!C$5,norm!C$6,norm!C$7) -> 00:00:00
A20: =A18+1 -> 2011-12-19 | B20: =PROPER(TEXT(A20,"ddd")) -> Ma | C20: =HelligdagsNavn(A20,0,0) ->  | K20: =IF(D20="","",(IF(E20-MAX(D20,(17/24))+(E20<D20)<0,0,E20-MAX(D20,(17/24))+(E20<D20)))-(IF((E20-MAX(D20,(23/24))+(E20<D20))<0,0,(E20-MAX(D20,(23/24))+(E20<D20))))) ->  | Q20: =IF(D20="","",IF(D20<6/24,6/24-D20,"")) ->  | S20: =IF(G20="","",IF(G20<>0,IF(C20<>"",IF(O20+Q20=0,Satser!B$26,((O20+Q20)*24)*(24/1440)+Satser!B$26),IF(O20+Q20=0,"",((O20+Q20)*24)*(24/1440))),"")) ->  | V20: =CHOOSE(WEEKDAY(A20,2),norm!C$1,norm!C$2,norm!C$3,norm!C$4,norm!C$5,norm!C$6,norm!C$7) -> 07:30:00
A21: =A20+1 -> 2011-12-20 | B21: =PROPER(TEXT(A21,"ddd")) -> Ti | C21: =HelligdagsNavn(A21,0,0) ->  | S21: =IF(G21="","",IF(G21<>0,IF(C21<>"",IF(O21+Q21=0,Satser!B$26,((O21+Q21)*24)*(24/1440)+Satser!B$26),IF(O21+Q21=0,"",((O21+Q21)*24)*(24/1440))),"")) ->  | V21: =CHOOSE(WEEKDAY(A21,2),norm!C$1,norm!C$2,norm!C$3,norm!C$4,norm!C$5,norm!C$6,norm!C$7) -> 07:30:00
A22: =A21+1 -> 2011-12-21 | B22: =PROPER(TEXT(A22,"ddd")) -> On | S22: =IF(G22="","",IF(G22<>0,IF(C22<>"",IF(O22+Q22=0,Satser!B$26,((O22+Q22)*24)*(24/1440)+Satser!B$26),IF(O22+Q22=0,"",((O22+Q22)*24)*(24/1440))),"")) ->  | V22: =CHOOSE(WEEKDAY(A22,2),norm!C$1,norm!C$2,norm!C$3,norm!C$4,norm!C$5,norm!C$6,norm!C$7) -> 07:30:00
A23: 2011-12-22 | B23: To | S23: =IF(G23="","",IF(G23<>0,IF(C23<>"",IF(O23+Q23=0,Satser!B$26,((O23+Q23)*24)*(24/1440)+Satser!B$26),IF(O23+Q23=0,"",((O23+Q23)*24)*(24/1440))),"")) ->  | V23: =CHOOSE(WEEKDAY(A23,2),norm!C$1,norm!C$2,norm!C$3,norm!C$4,norm!C$5,norm!C$6,norm!C$7) -> 07:30:00
A24: 2011-12-23 | B24: Fr | O24: =IF(E24<D24,IF(E24>6/24,E24-6/24,""),"") ->  | S24: =IF(G24="","",IF(G24<>0,IF(C24<>"",IF(O24+Q24=0,Satser!B$26,((O24+Q24)*24)*(24/1440)+Satser!B$26),IF(O24+Q24=0,"",((O24+Q24)*24)*(24/1440))),"")) ->  | V24: =CHOOSE(WEEKDAY(A24,2),norm!C$1,norm!C$2,norm!C$3,norm!C$4,norm!C$5,norm!C$6,norm!C$7) -> 07:00:00
A25: 2011-12-24 | B25: Lø | C25: Julaftensdag | O25: =IF(D25="","",IF((E25-MAX(D25,(6/24))+(D25>E25))<0,0,(IF(E25<D25,IF(E25>6/24,6/24,E25),E25)-MAX(D25,(6/24)))+(D25>E25))+(6/24)-MIN(E25,(6/24))) ->  | Q25: =IF(E25<D25,IF(E25>6/24,E25-6/24,""),"") ->  | S25: =IF(G25="","",IF(G25<>0,IF(C25<>"",IF(O25+Q25=0,Satser!B$26,((O25+Q25)*24)*(24/1440)+Satser!B$26),IF(O25+Q25=0,"",((O25+Q25)*24)*(24/1440))),"")) ->  | V25: =CHOOSE(WEEKDAY(A25,2),norm!C$1,norm!C$2,norm!C$3,norm!C$4,norm!C$5,norm!C$6,norm!C$7) -> 00:00:00
A26: 2011-12-25 | B26: Sø | C26: 1. Juledag | O26: =IF(D26="","",IF(D26<6/24,IF(E26<6/24,6/24-D26-(6/24-E26),6/24-D26),"00:00")) ->  | Q26: =IF(D26="","",IF((E26-MAX(D26,(6/24))+(D26>E26))<0,0,(IF(E26<D26,IF(E26>6/24,6/24,E26),E26)-MAX(D26,(6/24)))+(D26>E26))+(6/24)-MIN(E26,(6/24))) ->  | S26: =IF(G26="","",IF(G26<>0,IF(C26<>"",IF(O26+Q26=0,Satser!B$26,((O26+Q26)*24)*(24/1440)+Satser!B$26),IF(O26+Q26=0,"",((O26+Q26)*24)*(24/1440))),"")) ->  | V26: =CHOOSE(WEEKDAY(A26,2),norm!C$1,norm!C$2,norm!C$3,norm!C$4,norm!C$5,norm!C$6,norm!C$7) -> 00:00:00
S27: =IF(G27="","",IF(G27<>0,IF(C27<>"",IF(O27+Q27=0,Satser!B$26,((O27+Q27)*24)*(24/1440)+Satser!B$26),IF(O27+Q27=0,"",((O27+Q27)*24)*(24/1440))),"")) ->  | V27: =CHOOSE(WEEKDAY(A27,2),norm!C$1,norm!C$2,norm!C$3,norm!C$4,norm!C$5,norm!C$6,norm!C$7) -> 00:00:00
A28: =A26+1 -> 2011-12-26 | B28: =PROPER(TEXT(A28,"ddd")) -> Ma | C28: =HelligdagsNavn(A28,0,0) -> 2. Juledag | K28: =IF(D28="","",(IF(E28-MAX(D28,(17/24))+(E28<D28)<0,0,E28-MAX(D28,(17/24))+(E28<D28)))-(IF((E28-MAX(D28,(23/24))+(E28<D28))<0,0,(E28-MAX(D28,(23/24))+(E28<D28))))) ->  | Q28: =IF(D28="","",IF(D28<6/24,6/24-D28,"")) ->  | S28: =IF(G28="","",IF(G28<>0,IF(C28<>"",IF(O28+Q28=0,Satser!B$26,((O28+Q28)*24)*(24/1440)+Satser!B$26),IF(O28+Q28=0,"",((O28+Q28)*24)*(24/1440))),"")) ->  | V28: =CHOOSE(WEEKDAY(A28,2),norm!C$1,norm!C$2,norm!C$3,norm!C$4,norm!C$5,norm!C$6,norm!C$7) -> 07:30:00
A29: =A28+1 -> 2011-12-27 | B29: =PROPER(TEXT(A29,"ddd")) -> Ti | C29: =HelligdagsNavn(A29,0,0) ->  | S29: =IF(G29="","",IF(G29<>0,IF(C29<>"",IF(O29+Q29=0,Satser!B$26,((O29+Q29)*24)*(24/1440)+Satser!B$26),IF(O29+Q29=0,"",((O29+Q29)*24)*(24/1440))),"")) ->  | V29: =CHOOSE(WEEKDAY(A29,2),norm!C$1,norm!C$2,norm!C$3,norm!C$4,norm!C$5,norm!C$6,norm!C$7) -> 07:30:00
A30: =A29+1 -> 2011-12-28 | B30: =PROPER(TEXT(A30,"ddd")) -> On | S30: =IF(G30="","",IF(G30<>0,IF(C30<>"",IF(O30+Q30=0,Satser!B$26,((O30+Q30)*24)*(24/1440)+Satser!B$26),IF(O30+Q30=0,"",((O30+Q30)*24)*(24/1440))),"")) ->  | V30: =CHOOSE(WEEKDAY(A30,2),norm!C$1,norm!C$2,norm!C$3,norm!C$4,norm!C$5,norm!C$6,norm!C$7) -> 07:30:00
A31: 2011-12-29 | B31: To | S31: =IF(G31="","",IF(G31<>0,IF(C31<>"",IF(O31+Q31=0,Satser!B$26,((O31+Q31)*24)*(24/1440)+Satser!B$26),IF(O31+Q31=0,"",((O31+Q31)*24)*(24/1440))),"")) ->  | V31: =CHOOSE(WEEKDAY(A31,2),norm!C$1,norm!C$2,norm!C$3,norm!C$4,norm!C$5,norm!C$6,norm!C$7) -> 07:30:00
A32: 2011-12-30 | B32: Fr | O32: =IF(E32<D32,IF(E32>6/24,E32-6/24,""),"") ->  | S32: =IF(G32="","",IF(G32<>0,IF(C32<>"",IF(O32+Q32=0,Satser!B$26,((O32+Q32)*24)*(24/1440)+Satser!B$26),IF(O32+Q32=0,"",((O32+Q32)*24)*(24/1440))),"")) ->  | V32: =CHOOSE(WEEKDAY(A32,2),norm!C$1,norm!C$2,norm!C$3,norm!C$4,norm!C$5,norm!C$6,norm!C$7) -> 07:00:00
A33: 2011-12-31 | B33: Lø | C33: Nytårsaftensdag | O33: =IF(D33="","",IF((E33-MAX(D33,(6/24))+(D33>E33))<0,0,(IF(E33<D33,IF(E33>6/24,6/24,E33),E33)-MAX(D33,(6/24)))+(D33>E33))+(6/24)-MIN(E33,(6/24))) ->  | Q33: =IF(E33<D33,IF(E33>6/24,E33-6/24,""),"") ->  | S33: =IF(G33="","",IF(G33<>0,IF(C33<>"",IF(O33+Q33=0,Satser!B$26,((O33+Q33)*24)*(24/1440)+Satser!B$26),IF(O33+Q33=0,"",((O33+Q33)*24)*(24/1440))),"")) ->  | V33: =CHOOSE(WEEKDAY(A33,2),norm!C$1,norm!C$2,norm!C$3,norm!C$4,norm!C$5,norm!C$6,norm!C$7) -> 00:00:00
A34: 2012-01-01 | B34: Sø | C34: Nytårsdag | K34: =IF(D34="","",(IF(E34-MAX(D34,(17/24))+(E34<D34)<0,0,E34-MAX(D34,(17/24))+(E34<D34)))-(IF((E34-MAX(D34,(23/24))+(E34<D34))<0,0,(E34-MAX(D34,(23/24))+(E34<D34))))) ->  | M34: =IF(G34="","",IF((E34-MAX(D34,(22/24))+(D34>E34))<0,0,(IF(E34<D34,IF(E34>6/24,6/24,E34),E34)-MAX(D34,(22/24)))+(D34>E34))+(6/24)-MIN(D34,(6/24))) ->  | O34: =IF(D34="","",IF(D34<6/24,IF(E34<6/24,6/24-D34-(6/24-E34),6/24-D34),"00:00")) ->  | Q34: =IF(D34="","",IF((E34-MAX(D34,(6/24))+(D34>E34))<0,0,(IF(E34<D34,IF(E34>6/24,6/24,E34),E34)-MAX(D34,(6/24)))+(D34>E34))+(6/24)-MIN(E34,(6/24))) ->  | S34: =IF(G34="","",IF(G34<>0,IF(C34<>"",IF(O34+Q34=0,Satser!B$26,((O34+Q34)*24)*(24/1440)+Satser!B$26),IF(O34+Q34=0,"",((O34+Q34)*24)*(24/1440))),"")) ->  | V34: =CHOOSE(WEEKDAY(A34,2),norm!C$1,norm!C$2,norm!C$3,norm!C$4,norm!C$5,norm!C$6,norm!C$7) -> 00:00:00
A35: Total timer | G35: =IF(SUM(G9:G34)<>"0",SUM(G4:G34),"") -> 2.583333333 | H35: =IF(SUM(H4:H34)<>"0",SUM(H4:H34),"") -> 0.1666666667 | I35: 0.1145833333 | J35: 0.01041666667 | K35: =IF(SUM(K4:K34)<>"0",SUM(K4:K34),"") -> 0.2291666667 | M35: =SUM(M4:N34) -> 08:45:00 | O35: =IF(SUM(O4:O34)<>"0",SUM(O4:O34),"") -> 0.5 | P35: =IF(SUM(P4:P34)<>"0",SUM(P4:P34),"") -> 0.04166666667 | Q35: =IF(SUM(Q4:Q34)<>"0",SUM(Q4:Q34),"") -> 05:00:00 | R35: =IF(SUM(R4:R34)<>"0",SUM(R4:R34),"") -> 07:00:00 | S35: =SUM(S4:S34) -> 0.2916666667 | T35: =SUM(T4:T34) -> 0
A36: Timer 1/100 | G36: =IF(G35<>"",ROUND(G35*24,2),"") -> 62 | H36: =IF(H35<>"",ROUND(H35*24,2),"") -> 4 | I36: 2.75 | J36: 0.25 | K36: =IF(K35<>"",ROUND(K35*24,2),"") -> 5.5 | M36: =IF(M35<>"",ROUND(M35*24,2),"") -> 8.75 | O36: =IF(O35<>"",ROUND(O35*24,2),"") -> 12 | P36: 1 | Q36: 5 | R36: 7 | S36: 7 | T36: 0
A37: Satser | G37: =Satser!B7 -> 107.35 | H37: =Satser!B9 -> 36.35 | I37: =Satser!B12 -> 58.1 | J37: =Satser!B15 -> 108.65 | K37: =Satser!B17 -> 24.4 | M37: =Satser!B19 -> 46.95 | O37: 28.68 | Q37: 67
G38: =IF(G35<>"",G36*G37,"") -> 6655.7 | H38: =IF(H35<>"",H36*H37,"") -> 145.4 | I38: 159.775 | J38: 27.1625 | K38: =IF(K35<>"",K36*K37,"") -> 134.2 | M38: =IF(M35<>"",M36*M36,"") -> 76.5625 | O38: =IF(N35<>"",M36*M37,"") ->  | R38: =IF(Q35<>"",Q35*Q37,"") -> 13.95833333
A40: Lønart
A41: 3025 | G41: =G35 -> 2.583333333
A42: 3425 | G42: =H35 -> 0.1666666667
A43: 3428 | G43: =J35 -> 0.01041666667
A44: Timer | G44: =SUM(G41:G43) -> 2.760416667 | H44: =IF(G44<>"",ROUND(G44*24,2),"") -> 66.25
H45: =G37*H44 -> 7111.9375

Sheet Tomt (hidden)
A1: Løn | B1: 1 juni 2010 - 30 juni 2010 | Q1: Time beregning:
A2: Lønart | G2: 3025 | H2: 3425 | I2: 3426 | J2: 3600 | K2: 3602 | L2: 3605 | M2: 3610 | N2: 9091 | O2: 9092 | Q2: Betalt pause ved vagt over 5 timer | U2: 00:25:00 | V2: minutter | W2: 00:00:00 | X2: 06:00:00 | Y2: 18:00:00 | Z2: 14:00:00
A3: Dato | B3: Dag | D3: Vagt | E3: Start | F3: Slut | G3: Time SID | H3: Overtid 1-3 time | I3: Overtid 4 - time | J3: Forskudttid alle dage | K3: Nattillæg 00-06 | L3: Weekend tillæg | M3: Delt tjenste
A4: 2010-04-01 | B4: =PROPER(TEXT(A4,"ddd")) -> To | C4: =HelligdagsNavn(A4,0,0) -> Skærtorsdag | E4: =IF($D4="","",IF(VLOOKUP($D4,#REF!,2)=0,"",VLOOKUP($D4,#REF!,2))) ->  | F4: =IF($D4="","",IF(VLOOKUP($D4,#REF!,3)="","",VLOOKUP($D4,#REF!,3))) ->  | G4: =IF($D4="","",VLOOKUP($D4,#REF!,13)) ->  | J4: =IF(E4<>"",IF(WEEKDAY(A4,2)<>6,IF(E4>F4,(F4-MAX(E4,(18/24))+(E4>F4))-F4,IF(F4>Y$2,(F4-MAX(E4,(18/24))),"")),IF(E4>F4,(F4-MAX(E4,(14/24))+(E4>F4))-F4,IF(F4>Z$2,(F4-MAX(E4,(14/24))),""))),"") ->  | K4: =IF(G4<>"",IF(S4<X$2,(X$2-S4),IF(V4<X$2,(V4-W$2),"")),"") ->  | L4: =IF(G4<>0,IF(WEEKDAY(A4,2)=7,G4,""),"") ->  | M4: =IF($D4="","",IF(VLOOKUP($D4,#REF!,15)="","",VLOOKUP($D4,#REF!,15))) ->  | N4: =IF(SUM(H4:I4)=0,"",SUM(H4:I4)) ->  | Q4: =IF(E4="","",HOUR(E4)) ->  | R4: =IF(E4="","",MINUTE(E4)) ->  | S4: =IF(E4="","",TIME(HOUR(E4),MINUTE(E4),0)) ->  | T4: =IF(F4="","",HOUR(F4)) ->  | U4: =IF(F4="","",MINUTE(F4)) ->  | V4: =TIME(HOUR(F4),MINUTE(F4),0) -> 
A5: 2010-04-02 | B5: =PROPER(TEXT(A5,"ddd")) -> Fr | C5: =HelligdagsNavn(A5,0,0) -> Langfredag | E5: =IF($D5="","",IF(VLOOKUP($D5,#REF!,2)=0,"",VLOOKUP($D5,#REF!,2))) ->  | F5: =IF($D5="","",IF(VLOOKUP($D5,#REF!,3)="","",VLOOKUP($D5,#REF!,3))) ->  | G5: =IF($D5="","",VLOOKUP($D5,#REF!,13)) ->  | J5: =IF(E5<>"",IF(WEEKDAY(A5,2)<>6,IF(E5>F5,(F5-MAX(E5,(18/24))+(E5>F5))-F5,IF(F5>Y$2,(F5-MAX(E5,(18/24))),"")),IF(E5>F5,(F5-MAX(E5,(14/24))+(E5>F5))-F5,IF(F5>Z$2,(F5-MAX(E5,(14/24))),""))),"") ->  | L5: =IF(G5<>0,IF(WEEKDAY(A5,2)=7,G5,""),"") ->  | M5: =IF($D5="","",IF(VLOOKUP($D5,#REF!,15)="","",VLOOKUP($D5,#REF!,15))) ->  | N5: =IF(SUM(H5:I5)=0,"",SUM(H5:I5)) ->  | V5: =TIME(HOUR(F5),MINUTE(F5),0) -> 
A6: 2010-04-03 | B6: =PROPER(TEXT(A6,"ddd")) -> Lø | E6: =IF($D6="","",IF(VLOOKUP($D6,#REF!,2)=0,"",VLOOKUP($D6,#REF!,2))) ->  | F6: =IF($D6="","",IF(VLOOKUP($D6,#REF!,3)="","",VLOOKUP($D6,#REF!,3))) ->  | G6: =IF($D6="","",VLOOKUP($D6,#REF!,13)) ->  | J6: =IF(E6<>"",IF(WEEKDAY(A6,2)<>6,IF(E6>F6,(F6-MAX(E6,(18/24))+(E6>F6))-F6,IF(F6>Y$2,(F6-MAX(E6,(18/24))),"")),IF(E6>F6,(F6-MAX(E6,(14/24))+(E6>F6))-F6,IF(F6>Z$2,(F6-MAX(E6,(14/24))),""))),"") ->  | M6: =IF($D6="","",IF(VLOOKUP($D6,#REF!,15)="","",VLOOKUP($D6,#REF!,15))) ->  | V6: =TIME(HOUR(F6),MINUTE(F6),0) -> 
A7: 2010-04-04 | B7: Sø | C7: Påskedag | E7: =IF($D7="","",IF(VLOOKUP($D7,#REF!,2)=0,"",VLOOKUP($D7,#REF!,2))) ->  | F7: =IF($D7="","",IF(VLOOKUP($D7,#REF!,3)="","",VLOOKUP($D7,#REF!,3))) ->  | G7: =IF($D7="","",VLOOKUP($D7,#REF!,13)) ->  | M7: =IF($D7="","",IF(VLOOKUP($D7,#REF!,15)="","",VLOOKUP($D7,#REF!,15))) ->  | O7: =IF($D7="","",IF(VLOOKUP($D7,#REF!,16)="","",VLOOKUP($D7,#REF!,16))) ->  | V7: =TIME(HOUR(F7),MINUTE(F7),0) -> 
A8: 2010-04-05 | B8: Ma | C8: 2. Påskedag | E8: =IF($D8="","",IF(VLOOKUP($D8,#REF!,2)=0,"",VLOOKUP($D8,#REF!,2))) ->  | F8: =IF($D8="","",IF(VLOOKUP($D8,#REF!,3)="","",VLOOKUP($D8,#REF!,3))) ->  | G8: =IF($D8="","",VLOOKUP($D8,#REF!,13)) ->  | M8: =IF($D8="","",IF(VLOOKUP($D8,#REF!,15)="","",VLOOKUP($D8,#REF!,15))) ->  | O8: =IF($D8="","",IF(VLOOKUP($D8,#REF!,16)="","",VLOOKUP($D8,#REF!,16))) ->  | V8: =TIME(HOUR(F8),MINUTE(F8),0) -> 
A9: 2010-04-06 | B9: Ti | E9: =IF($D9="","",IF(VLOOKUP($D9,#REF!,2)=0,"",VLOOKUP($D9,#REF!,2))) ->  | F9: =IF($D9="","",IF(VLOOKUP($D9,#REF!,3)="","",VLOOKUP($D9,#REF!,3))) ->  | G9: =IF($D9="","",VLOOKUP($D9,#REF!,13)) ->  | L9: =IF(G9<>0,IF(WEEKDAY(A9,2)=7,G9,""),"") ->  | M9: =IF($D9="","",IF(VLOOKUP($D9,#REF!,15)="","",VLOOKUP($D9,#REF!,15))) ->  | O9: =IF($D9="","",IF(VLOOKUP($D9,#REF!,16)="","",VLOOKUP($D9,#REF!,16))) ->  | V9: =IF(F9="","",TIME(HOUR(F9),MINUTE(F9),0)) -> 
A10: 2010-04-07 | B10: On | E10: =IF($D10="","",IF(VLOOKUP($D10,#REF!,2)=0,"",VLOOKUP($D10,#REF!,2))) ->  | F10: =IF($D10="","",IF(VLOOKUP($D10,#REF!,3)="","",VLOOKUP($D10,#REF!,3))) ->  | G10: =IF($D10="","",IF(VLOOKUP($D10,#REF!,13)="","",VLOOKUP($D10,#REF!,13))) ->  | L10: =IF(G10<>0,IF(WEEKDAY(A10,2)=7,G10,""),"") ->  | M10: =IF($D10="","",IF(VLOOKUP($D10,#REF!,15)="","",VLOOKUP($D10,#REF!,15))) ->  | O10: =IF($D10="","",IF(VLOOKUP($D10,#REF!,16)="","",VLOOKUP($D10,#REF!,16))) -> 
A11: 2010-04-08 | B11: To | E11: =IF($D11="","",IF(VLOOKUP($D11,#REF!,2)=0,"",VLOOKUP($D11,#REF!,2))) ->  | F11: =IF($D11="","",IF(VLOOKUP($D11,#REF!,3)="","",VLOOKUP($D11,#REF!,3))) ->  | G11: =IF($D11="","",IF(VLOOKUP($D11,#REF!,13)="","",VLOOKUP($D11,#REF!,13))) ->  | L11: =IF(G11<>0,IF(WEEKDAY(A11,2)=7,G11,""),"") ->  | M11: =IF($D11="","",IF(VLOOKUP($D11,#REF!,15)="","",VLOOKUP($D11,#REF!,15))) ->  | O11: =IF($D11="","",IF(VLOOKUP($D11,#REF!,16)="","",VLOOKUP($D11,#REF!,16))) -> 
A12: 2010-04-09 | B12: Fr | E12: =IF($D12="","",IF(VLOOKUP($D12,#REF!,2)=0,"",VLOOKUP($D12,#REF!,2))) ->  | F12: =IF($D12="","",IF(VLOOKUP($D12,#REF!,3)="","",VLOOKUP($D12,#REF!,3))) ->  | G12: =IF($D12="","",IF(VLOOKUP($D12,#REF!,13)="","",VLOOKUP($D12,#REF!,13))) ->  | M12: =IF($D12="","",IF(VLOOKUP($D12,#REF!,15)="","",VLOOKUP($D12,#REF!,15))) ->  | O12: =IF($D12="","",IF(VLOOKUP($D12,#REF!,16)="","",VLOOKUP($D12,#REF!,16))) -> 
A13: 2010-04-10 | B13: Lø | E13: =IF($D13="","",IF(VLOOKUP($D13,#REF!,2)=0,"",VLOOKUP($D13,#REF!,2))) ->  | F13: =IF($D13="","",IF(VLOOKUP($D13,#REF!,3)="","",VLOOKUP($D13,#REF!,3))) ->  | G13: =IF($D13="","",IF(VLOOKUP($D13,#REF!,13)="","",VLOOKUP($D13,#REF!,13))) ->  | M13: =IF($D13="","",IF(VLOOKUP($D13,#REF!,15)="","",VLOOKUP($D13,#REF!,15))) ->  | O13: =IF($D13="","",IF(VLOOKUP($D13,#REF!,16)="","",VLOOKUP($D13,#REF!,16))) -> 
A14: 2010-04-11 | B14: Sø | E14: =IF($D14="","",IF(VLOOKUP($D14,#REF!,2)=0,"",VLOOKUP($D14,#REF!,2))) ->  | F14: =IF($D14="","",IF(VLOOKUP($D14,#REF!,3)="","",VLOOKUP($D14,#REF!,3))) ->  | G14: =IF($D14="","",IF(VLOOKUP($D14,#REF!,13)="","",VLOOKUP($D14,#REF!,13))) ->  | M14: =IF($D14="","",IF(VLOOKUP($D14,#REF!,15)="","",VLOOKUP($D14,#REF!,15))) ->  | O14: =IF($D14="","",IF(VLOOKUP($D14,#REF!,16)="","",VLOOKUP($D14,#REF!,16))) -> 
A15: 2010-04-12 | B15: Ma | E15: =IF($D15="","",IF(VLOOKUP($D15,#REF!,2)=0,"",VLOOKUP($D15,#REF!,2))) ->  | F15: =IF($D15="","",IF(VLOOKUP($D15,#REF!,3)="","",VLOOKUP($D15,#REF!,3))) ->  | G15: =IF($D15="","",IF(VLOOKUP($D15,#REF!,13)="","",VLOOKUP($D15,#REF!,13))) ->  | M15: =IF($D15="","",IF(VLOOKUP($D15,#REF!,15)="","",VLOOKUP($D15,#REF!,15))) ->  | O15: =IF($D15="","",IF(VLOOKUP($D15,#REF!,16)="","",VLOOKUP($D15,#REF!,16))) -> 
A16: 2010-04-13 | B16: Ti | E16: =IF($D16="","",IF(VLOOKUP($D16,#REF!,2)=0,"",VLOOKUP($D16,#REF!,2))) ->  | F16: =IF($D16="","",IF(VLOOKUP($D16,#REF!,3)="","",VLOOKUP($D16,#REF!,3))) ->  | G16: =IF($D16="","",IF(VLOOKUP($D16,#REF!,13)="","",VLOOKUP($D16,#REF!,13))) ->  | M16: =IF($D16="","",IF(VLOOKUP($D16,#REF!,15)="","",VLOOKUP($D16,#REF!,15))) ->  | O16: =IF($D16="","",IF(VLOOKUP($D16,#REF!,16)="","",VLOOKUP($D16,#REF!,16))) -> 
A17: 2010-04-14 | B17: On | E17: =IF($D17="","",IF(VLOOKUP($D17,#REF!,2)=0,"",VLOOKUP($D17,#REF!,2))) ->  | F17: =IF($D17="","",IF(VLOOKUP($D17,#REF!,3)="","",VLOOKUP($D17,#REF!,3))) ->  | G17: =IF($D17="","",IF(VLOOKUP($D17,#REF!,13)="","",VLOOKUP($D17,#REF!,13))) ->  | M17: =IF($D17="","",IF(VLOOKUP($D17,#REF!,15)="","",VLOOKUP($D17,#REF!,15))) ->  | O17: =IF($D17="","",IF(VLOOKUP($D17,#REF!,16)="","",VLOOKUP($D17,#REF!,16))) -> 
A18: 2010-04-15 | B18: To | E18: =IF($D18="","",IF(VLOOKUP($D18,#REF!,2)=0,"",VLOOKUP($D18,#REF!,2))) ->  | F18: =IF($D18="","",IF(VLOOKUP($D18,#REF!,3)="","",VLOOKUP($D18,#REF!,3))) ->  | G18: =IF($D18="","",IF(VLOOKUP($D18,#REF!,13)="","",VLOOKUP($D18,#REF!,13))) ->  | M18: =IF($D18="","",IF(VLOOKUP($D18,#REF!,15)="","",VLOOKUP($D18,#REF!,15))) ->  | O18: =IF($D18="","",IF(VLOOKUP($D18,#REF!,16)="","",VLOOKUP($D18,#REF!,16))) -> 
A19: 2010-04-16 | B19: Fr | E19: =IF($D19="","",IF(VLOOKUP($D19,#REF!,2)=0,"",VLOOKUP($D19,#REF!,2))) ->  | F19: =IF($D19="","",IF(VLOOKUP($D19,#REF!,3)="","",VLOOKUP($D19,#REF!,3))) ->  | G19: =IF($D19="","",IF(VLOOKUP($D19,#REF!,13)="","",VLOOKUP($D19,#REF!,13))) ->  | M19: =IF($D19="","",IF(VLOOKUP($D19,#REF!,15)="","",VLOOKUP($D19,#REF!,15))) ->  | O19: =IF($D19="","",IF(VLOOKUP($D19,#REF!,16)="","",VLOOKUP($D19,#REF!,16))) -> 
A20: 2010-04-17 | B20: Lø | E20: =IF($D20="","",IF(VLOOKUP($D20,#REF!,2)=0,"",VLOOKUP($D20,#REF!,2))) ->  | F20: =IF($D20="","",IF(VLOOKUP($D20,#REF!,3)="","",VLOOKUP($D20,#REF!,3))) ->  | G20: =IF($D20="","",IF(VLOOKUP($D20,#REF!,13)="","",VLOOKUP($D20,#REF!,13))) ->  | M20: =IF($D20="","",IF(VLOOKUP($D20,#REF!,15)="","",VLOOKUP($D20,#REF!,15))) ->  | O20: =IF($D20="","",IF(VLOOKUP($D20,#REF!,16)="","",VLOOKUP($D20,#REF!,16))) -> 
A21: 2010-04-18 | B21: Sø | E21: =IF($D21="","",IF(VLOOKUP($D21,#REF!,2)=0,"",VLOOKUP($D21,#REF!,2))) ->  | F21: =IF($D21="","",IF(VLOOKUP($D21,#REF!,3)="","",VLOOKUP($D21,#REF!,3))) ->  | G21: =IF($D21="","",IF(VLOOKUP($D21,#REF!,13)="","",VLOOKUP($D21,#REF!,13))) ->  | M21: =IF($D21="","",IF(VLOOKUP($D21,#REF!,15)="","",VLOOKUP($D21,#REF!,15))) ->  | O21: =IF($D21="","",IF(VLOOKUP($D21,#REF!,16)="","",VLOOKUP($D21,#REF!,16))) -> 
A22: 2010-04-19 | B22: Ma | E22: =IF($D22="","",IF(VLOOKUP($D22,#REF!,2)=0,"",VLOOKUP($D22,#REF!,2))) ->  | F22: =IF($D22="","",IF(VLOOKUP($D22,#REF!,3)="","",VLOOKUP($D22,#REF!,3))) ->  | G22: =IF($D22="","",IF(VLOOKUP($D22,#REF!,13)="","",VLOOKUP($D22,#REF!,13))) ->  | M22: =IF($D22="","",IF(VLOOKUP($D22,#REF!,15)="","",VLOOKUP($D22,#REF!,15))) ->  | O22: =IF($D22="","",IF(VLOOKUP($D22,#REF!,16)="","",VLOOKUP($D22,#REF!,16))) -> 
A23: 2010-04-20 | B23: Ti | E23: =IF($D23="","",IF(VLOOKUP($D23,#REF!,2)=0,"",VLOOKUP($D23,#REF!,2))) ->  | F23: =IF($D23="","",IF(VLOOKUP($D23,#REF!,3)="","",VLOOKUP($D23,#REF!,3))) ->  | G23: =IF($D23="","",IF(VLOOKUP($D23,#REF!,13)="","",VLOOKUP($D23,#REF!,13))) ->  | M23: =IF($D23="","",IF(VLOOKUP($D23,#REF!,15)="","",VLOOKUP($D23,#REF!,15))) ->  | O23: =IF($D23="","",IF(VLOOKUP($D23,#REF!,16)="","",VLOOKUP($D23,#REF!,16))) -> 
A24: 2010-04-21 | B24: On | E24: =IF($D24="","",IF(VLOOKUP($D24,#REF!,2)=0,"",VLOOKUP($D24,#REF!,2))) ->  | F24: =IF($D24="","",IF(VLOOKUP($D24,#REF!,3)="","",VLOOKUP($D24,#REF!,3))) ->  | G24: =IF($D24="","",IF(VLOOKUP($D24,#REF!,13)="","",VLOOKUP($D24,#REF!,13))) ->  | M24: =IF($D24="","",IF(VLOOKUP($D24,#REF!,15)="","",VLOOKUP($D24,#REF!,15))) ->  | O24: =IF($D24="","",IF(VLOOKUP($D24,#REF!,16)="","",VLOOKUP($D24,#REF!,16))) -> 
A25: 2010-04-22 | B25: To | E25: =IF($D25="","",IF(VLOOKUP($D25,#REF!,2)=0,"",VLOOKUP($D25,#REF!,2))) ->  | F25: =IF($D25="","",IF(VLOOKUP($D25,#REF!,3)="","",VLOOKUP($D25,#REF!,3))) ->  | G25: =IF($D25="","",IF(VLOOKUP($D25,#REF!,13)="","",VLOOKUP($D25,#REF!,13))) ->  | M25: =IF($D25="","",IF(VLOOKUP($D25,#REF!,15)="","",VLOOKUP($D25,#REF!,15))) ->  | O25: =IF($D25="","",IF(VLOOKUP($D25,#REF!,16)="","",VLOOKUP($D25,#REF!,16))) -> 
A26: 2010-04-23 | B26: Fr | E26: =IF($D26="","",IF(VLOOKUP($D26,#REF!,2)=0,"",VLOOKUP($D26,#REF!,2))) ->  | F26: =IF($D26="","",IF(VLOOKUP($D26,#REF!,3)="","",VLOOKUP($D26,#REF!,3))) ->  | G26: =IF($D26="","",IF(VLOOKUP($D26,#REF!,13)="","",VLOOKUP($D26,#REF!,13))) ->  | M26: =IF($D26="","",IF(VLOOKUP($D26,#REF!,15)="","",VLOOKUP($D26,#REF!,15))) ->  | O26: =IF($D26="","",IF(VLOOKUP($D26,#REF!,16)="","",VLOOKUP($D26,#REF!,16))) -> 
A27: 2010-04-24 | B27: Lø | E27: =IF($D27="","",IF(VLOOKUP($D27,#REF!,2)=0,"",VLOOKUP($D27,#REF!,2))) ->  | F27: =IF($D27="","",IF(VLOOKUP($D27,#REF!,3)="","",VLOOKUP($D27,#REF!,3))) ->  | G27: =IF($D27="","",IF(VLOOKUP($D27,#REF!,13)="","",VLOOKUP($D27,#REF!,13))) ->  | M27: =IF($D27="","",IF(VLOOKUP($D27,#REF!,15)="","",VLOOKUP($D27,#REF!,15))) ->  | O27: =IF($D27="","",IF(VLOOKUP($D27,#REF!,16)="","",VLOOKUP($D27,#REF!,16))) -> 
A28: 2010-04-25 | B28: Sø | E28: =IF($D28="","",IF(VLOOKUP($D28,#REF!,2)=0,"",VLOOKUP($D28,#REF!,2))) ->  | F28: =IF($D28="","",IF(VLOOKUP($D28,#REF!,3)="","",VLOOKUP($D28,#REF!,3))) ->  | G28: =IF($D28="","",IF(VLOOKUP($D28,#REF!,13)="","",VLOOKUP($D28,#REF!,13))) ->  | M28: =IF($D28="","",IF(VLOOKUP($D28,#REF!,15)="","",VLOOKUP($D28,#REF!,15))) ->  | O28: =IF($D28="","",IF(VLOOKUP($D28,#REF!,16)="","",VLOOKUP($D28,#REF!,16))) -> 
A29: 2010-04-26 | B29: Ma | E29: =IF($D29="","",IF(VLOOKUP($D29,#REF!,2)=0,"",VLOOKUP($D29,#REF!,2))) ->  | F29: =IF($D29="","",IF(VLOOKUP($D29,#REF!,3)="","",VLOOKUP($D29,#REF!,3))) ->  | G29: =IF($D29="","",IF(VLOOKUP($D29,#REF!,13)="","",VLOOKUP($D29,#REF!,13))) ->  | M29: =IF($D29="","",IF(VLOOKUP($D29,#REF!,15)="","",VLOOKUP($D29,#REF!,15))) ->  | O29: =IF($D29="","",IF(VLOOKUP($D29,#REF!,16)="","",VLOOKUP($D29,#REF!,16))) -> 
A30: 2010-04-27 | B30: Ti | E30: =IF($D30="","",IF(VLOOKUP($D30,#REF!,2)=0,"",VLOOKUP($D30,#REF!,2))) ->  | F30: =IF($D30="","",IF(VLOOKUP($D30,#REF!,3)="","",VLOOKUP($D30,#REF!,3))) ->  | G30: =IF($D30="","",IF(VLOOKUP($D30,#REF!,13)="","",VLOOKUP($D30,#REF!,13))) ->  | M30: =IF($D30="","",IF(VLOOKUP($D30,#REF!,15)="","",VLOOKUP($D30,#REF!,15))) ->  | O30: =IF($D30="","",IF(VLOOKUP($D30,#REF!,16)="","",VLOOKUP($D30,#REF!,16))) -> 
A31: 2010-04-28 | B31: On | E31: =IF($D31="","",IF(VLOOKUP($D31,#REF!,2)=0,"",VLOOKUP($D31,#REF!,2))) ->  | F31: =IF($D31="","",IF(VLOOKUP($D31,#REF!,3)="","",VLOOKUP($D31,#REF!,3))) ->  | G31: =IF($D31="","",IF(VLOOKUP($D31,#REF!,13)="","",VLOOKUP($D31,#REF!,13))) ->  | M31: =IF($D31="","",IF(VLOOKUP($D31,#REF!,15)="","",VLOOKUP($D31,#REF!,15))) ->  | O31: =IF($D31="","",IF(VLOOKUP($D31,#REF!,16)="","",VLOOKUP($D31,#REF!,16))) -> 
A32: 2010-04-29 | B32: =IF(A32="","",PROPER(TEXT(A32,"ddd"))) -> To | E32: =IF($D32="","",IF(VLOOKUP($D32,#REF!,2)=0,"",VLOOKUP($D32,#REF!,2))) ->  | F32: =IF($D32="","",IF(VLOOKUP($D32,#REF!,3)="","",VLOOKUP($D32,#REF!,3))) ->  | G32: =IF($D32="","",IF(VLOOKUP($D32,#REF!,13)="","",VLOOKUP($D32,#REF!,13))) ->  | M32: =IF($D32="","",IF(VLOOKUP($D32,#REF!,15)="","",VLOOKUP($D32,#REF!,15))) ->  | O32: =IF($D32="","",IF(VLOOKUP($D32,#REF!,16)="","",VLOOKUP($D32,#REF!,16))) -> 
A33: 2010-04-30 | B33: =IF(A33="","",PROPER(TEXT(A33,"ddd"))) -> Fr | C33: Store Bededag | E33: =IF($D33="","",IF(VLOOKUP($D33,#REF!,2)=0,"",VLOOKUP($D33,#REF!,2))) ->  | F33: =IF($D33="","",IF(VLOOKUP($D33,#REF!,3)="","",VLOOKUP($D33,#REF!,3))) ->  | G33: =IF($D33="","",IF(VLOOKUP($D33,#REF!,13)="","",VLOOKUP($D33,#REF!,13))) ->  | M33: =IF($D33="","",IF(VLOOKUP($D33,#REF!,15)="","",VLOOKUP($D33,#REF!,15))) ->  | O33: =IF($D33="","",IF(VLOOKUP($D33,#REF!,16)="","",VLOOKUP($D33,#REF!,16))) -> 
C34: 1. Juledag | E34: =IF($D34="","",IF(VLOOKUP($D34,#REF!,2)=0,"",VLOOKUP($D34,#REF!,2))) ->  | F34: =IF($D34="","",IF(VLOOKUP($D34,#REF!,3)="","",VLOOKUP($D34,#REF!,3))) ->  | G34: =IF($D34="","",IF(VLOOKUP($D34,#REF!,13)="","",VLOOKUP($D34,#REF!,13))) ->  | M34: =IF($D34="","",IF(VLOOKUP($D34,#REF!,15)="","",VLOOKUP($D34,#REF!,15))) ->  | O34: =IF($D34="","",IF(VLOOKUP($D34,#REF!,16)="","",VLOOKUP($D34,#REF!,16))) -> 
A35: Total timer | G35: =IF(SUM(G9:G34)<>"0",SUM(G4:G34),"") -> 0 | H35: =IF(SUM(H4:H34)<>"0",SUM(H4:H34),"") -> 0 | I35: 0 | J35: 0 | K35: 0 | L35: 0 | M35: 0 | N35: =SUM(N4:N34) -> 0 | O35: =SUM(O4:O34) -> 0
A36: Timer 1/100 | G36: =IF(G35<>"",ROUND(G35*24,2),"") -> 0 | H36: =IF(H35<>"",ROUND(H35*24,2),"") -> 0 | I36: 0 | J36: 0 | K36: 0 | L36: 0 | N36: 0 | O36: 0
A37: Satser | G37: =Satser!B7 -> 107.35 | H37: =Satser!B9 -> 36.35 | I37: =Satser!B12 -> 58.1 | J37: 18.8 | K37: 21.81 | L37: 28.68 | M37: 67
G38: =IF(G35<>"",G36*G37,"") -> 0 | H38: =IF(H35<>"",H36*H37,"") -> 0 | I38: 0 | J38: 0 | K38: 0 | L38: 0 | M38: =IF(M35<>"",M35*M37,"") -> 0
A40: Lønart
A41: 3025 | G41: =G35 -> 0
A42: 3425 | G42: =H35 -> 0
A43: 3426 | G43: =I35 -> 0
A44: Timer | G44: =SUM(G41:G43) -> 0 | H44: =IF(G44<>"",ROUND(G44*24,2),"") -> 0
H45: =G37*H44 -> 0

Sheet Satser
A3: Timeløn | B3: 119.62
A4: specielt tillæg | B4: 1.19
A5: Chauffør tillæg | B5: 4.95
A7: Samlet timeløn | B7: 107.35 | D7: 108.7
A9: overtidstillæg 50% | B9: 36.35 | D9: 36.5
A10: pr. time | B10: =B7+B9 -> 143.7
A12: overtidstillæg 100% | B12: 58.1 | D12: 58.9
A13: pr. time | B13: =B12+B7 -> 165.45
B15: 108.65 | D15: 110.15
A17: Aftentillæg | B17: 24.4 | F17: Arbejde mellem 18:00 og 22:00, lørdag dog fra kl 14:00
A18: Nattillæg | B18: 39.75 | F18: Arbejde mellem 22:00 og 06:00
B19: 46.95
A20: Søndagstillæg | B20: 28.68
A22: Ledbus | B22: 3
A23: Trafiftælling | B23: 5
A24: Delt tjeneste | B24: 67 | D24: pr. arbejdsdag
B26: 07:24:00

Sheet norm
A1: mandag | B1: 7.5 | C1: 07:30:00
A2: tirsdag | B2: 7.5 | C2: 07:30:00
A3: onsdag | B3: 7.5 | C3: 07:30:00
A4: torsdag | B4: 7.5 | C4: 07:30:00
A5: fredag | B5: 7 | C5: 07:00:00
A6: lørdag | B6: 0 | C6: 00:00:00
A7: søndag | B7: 0 | C7: 00:00:00

Sheet Ark2

Sheet Ark3
